bitfinex-derivatives/quotes_ETHF0:USTF0_20250530
["timestamp","ask_amount","ask_price","bid_price","bid_amount"]
[1748598401741,0.77280889,2606.3,2606.2,1.99089]
[1748598401742,0.00574889,2606.3,2606.2,1.99089]
[1748598402241,3.97463,2607.1,2606.3,1.91767]
[1748598402440,4.4648,2607.1,2606.4,3.2078]
[1748598402643,5.23165,2607.1,2606.5,1.2363]
[1748598402855,5.23165,2607.1,2606.6,4.976]
[1748598403051,5.23165,2607.1,2606.9,0.76686]
[1748598403251,3.2078,2607.1,2607.0,0.76686]
[1748598403551,0.76686,2607.0,2606.1,3.2078]
[1748598403850,0.76704,2606.4,2606.2,0.76709]
[1748598404052,0.76702,2606.5,2606.1,3.2078]
[1748598404253,0.76702,2606.5,2606.3,0.76705]
[1748598404448,0.76702,2606.5,2606.2,1.2363]
[1748598404654,0.76699,2606.6,2606.2,1.2363]
[1748598404844,3.2078,2606.9,2606.4,0.76702]
[1748598405046,0.76698,2606.6,2606.5,0.76699]
[1748598405346,3.97478,2606.6,2606.5,4.976]
[1748598405550,0.76698,2606.6,2606.5,4.976]
[1748598405758,0.76698,2606.6,2606.5,5.74298]
[1748598405952,1.2743,2606.8,2606.6,0.76698]
[1748598406157,0.76696,2606.7,2606.5,5.74299]
[1748598406358,0.76698,2606.6,2606.5,4.976]
[1748598406559,2.09918,2606.6,2606.5,4.976]
[1748598406951,2.09918,2606.6,2606.5,5.74301]
[1748598407149,2.09918,2606.6,2606.5,4.976]
[1748598407554,1.3322,2606.6,2606.5,5.74301]
[1748598407954,1.3322,2607.2,2606.5,4.976]
[1748598408156,1.91708,2607.1,2606.5,5.743]
[1748598408357,0.76697,2606.7,2606.5,5.743]
[1748598408559,1.3322,2607.0,2606.5,4.976]
[1748598408764,0.76687,2607.0,2606.8,0.7669]
[1748598408960,1.3238,2607.2,2606.6,1.2206]
[1748598409166,0.76687,2607.0,2606.6,1.2206]
[1748598409469,0.76687,2607.0,2606.9,0.76689]
[1748598409661,1.3238,2607.2,2607.1,0.76683]
[1748598409862,0.00574889,2607.3,2606.8,1.9173]
[1748598410068,0.00574889,2607.3,2607.2,0.7668]
[1748598410365,0.00574889,2607.3,2607.2,5.7428]
[1748598410966,3.2078,2607.9,2607.2,9.976]
[1748598411160,3.2078,2607.9,2607.6,0.76666]
[1748598411359,3.83084,2609.4,2607.2,6.89297]
[1748598411360,1.91508,2609.9,2608.8,0.76633]
[1748598411562,1.2108,2609.3,2609.2,0.76621]
[1748598411760,1.2108,2609.3,2608.9,4.976]
[1748598411761,1.97699,2609.3,2608.9,4.976]
[1748598411962,1.2108,2609.3,2609.0,1.3108]
[1748598412356,0.76622,2609.2,2609.0,2.07707]
[1748598412569,0.00574889,2609.4,2609.0,1.3108]
[1748598412761,0.76624,2609.1,2609.0,1.3108]
[1748598413065,0.76627,2609.0,2608.9,4.976]
[1748598413263,1.21654889,2609.4,2608.9,4.94]
[1748598413659,1.21654889,2609.4,2608.8,0.00574889]
[1748598413660,0.7663,2608.9,2608.8,0.00574889]
[1748598414161,5.0,2608.9,2608.0,9.4586]
[1748598414464,0.7664,2608.6,2608.3,0.76646]
[1748598414765,1.2445,2608.5,2608.2,0.7665]
[1748598414966,2.01093,2608.5,2608.3,0.76646]
[1748598415162,0.76646,2608.4,2608.1,0.00574889]
[1748598415464,2.01096,2608.4,2608.2,0.76649]
[1748598415767,1.2445,2608.4,2608.3,0.76648]
[1748598415963,2.01095,2608.4,2608.2,0.76649]
[1748598416164,0.7665,2608.2,2608.1,0.00574889]
[1748598416660,3.2078,2608.7,2608.1,0.00574889]
[1748598416862,2.01087,2608.7,2608.2,3.2078]
[1748598417066,2.01087,2608.7,2608.5,0.7664]
[1748598417263,1.2445,2608.7,2608.5,5.7064]
[1748598417565,0.76639,2608.6,2608.5,4.94]
[1748598417967,2.01088,2608.7,2608.5,4.94]
[1748598418162,0.76639,2608.6,2608.5,4.94]
[1748598418364,2.03329,2608.6,2608.5,4.94]
[1748598419162,5.24109,2608.6,2608.5,4.94]
[1748598419361,0.76648,2608.3,2608.2,3.2078]
[1748598420358,0.76651,2608.2,2608.1,0.00574889]
[1748598420564,2.03341,2608.2,2608.1,0.00574889]
[1748598420765,7.03341,2608.2,2608.1,0.00574889]
[1748598421159,2.03341,2608.2,2608.1,0.00574889]
[1748598421565,1.2669,2608.2,2608.1,0.00574889]
[1748598421769,2.03341,2608.2,2608.1,0.00574889]
[1748598424869,0.06993857,2608.2,2608.1,0.77228889]
[1748598425466,0.06993857,2608.2,2608.1,3.98008889]
[1748598426865,0.76636,2608.7,2608.2,1.91625]
[1748598427065,0.76636,2608.7,2608.6,0.76639]
[1748598427274,2.56507,2609.3,2608.6,6.85497]
[1748598427275,0.76625,2609.1,2608.6,6.85497]
[1748598427469,4.50204889,2609.4,2608.8,3.2078]
[1748598427665,1.29424889,2609.4,2609.1,3.2078]
[1748598427970,0.76618,2609.3,2609.2,5.7052]
[1748598428169,0.77191889,2609.4,2609.2,4.939]
[1748598428377,0.00574889,2609.4,2609.2,6.96169]
[1748598428576,0.76618,2609.3,2609.2,6.1955]
[1748598428975,0.76618,2609.3,2609.2,4.939]
[1748598429866,0.00574889,2609.4,2609.2,4.939]
[1748598429867,0.00574889,2609.4,2609.3,0.76618]
[1748598430067,0.00574889,2609.4,2609.3,2.05288]
[1748598430567,0.77189889,2609.4,2609.3,1.2867]
[1748598430767,0.77189889,2609.4,2609.1,3.2078]
[1748598430768,0.76633,2608.8,2608.7,38.651]
[1748598430963,1.91552,2609.3,2608.5,8.1458]
[1748598430964,0.76639,2608.6,2608.5,8.1458]
[1748598431171,0.76639,2608.6,2608.5,3.2078]
[1748598431476,0.7665,2608.2,2607.9,4.938]
[1748598431970,0.83643857,2608.2,2607.9,4.938]
[1748598432976,0.83643857,2608.2,2607.7,38.646]
[1748598433175,0.83643857,2608.2,2607.8,4.938]
[1748598434083,6.98623857,2608.2,2607.6,4.938]
[1748598434378,0.76665,2607.7,2607.6,4.938]
[1748598434577,0.76674,2607.4,2607.2,1.8567]
[1748598434875,0.76674,2607.4,2607.3,4.938]
[1748598435272,0.7668,2607.2,2607.1,0.00390853]
[1748598435577,0.7668,2607.2,2607.1,8.53e-06]
[1748598435578,3.9746,2607.2,2607.1,8.53e-06]
[1748598436170,8.9746,2607.2,2607.1,8.53e-06]
[1748598438080,0.76722,2605.8,2605.6,6.1932]
[1748598438372,3.2078,2606.1,2605.6,6.1932]
[1748598438577,3.2078,2606.5,2605.7,3.2078]
[1748598438779,3.2078,2606.5,2606.4,0.76703]
[1748598438780,4.5044,2606.5,2606.4,0.76703]
[1748598438980,3.2078,2606.5,2606.4,0.76703]
[1748598439683,0.00574889,2606.7,2606.6,0.76698]
[1748598439876,0.00574889,2606.7,2606.6,5.70698]
[1748598440380,0.00574889,2606.7,2606.6,10.70698]
[1748598440682,0.00574889,2606.7,2606.6,5.70698]
[1748598440978,0.00574889,2606.7,2606.6,4.94]
[1748598441172,0.00574889,2606.7,2606.6,5.70698]
[1748598444383,0.767,2606.6,2606.4,5.55601]
[1748598444580,0.00574889,2606.7,2606.3,0.6645]
[1748598444884,0.00574889,2606.7,2606.3,5.4535]
[1748598445081,0.00574889,2606.7,2606.4,1.2381]
[1748598445282,0.00574889,2606.7,2606.6,0.76698]
[1748598445787,0.76698,2606.6,2606.5,0.767]
[1748598445982,0.00574889,2606.7,2606.3,0.6645]
[1748598446178,1.2129,2606.6,2606.1,4.4459]
[1748598446490,0.76712,2606.1,2606.0,43.451]
[1748598446685,0.76712,2606.1,2606.0,4.79]
[1748598447179,0.76721,2605.8,2605.7,1.2381]
[1748598447380,0.76724,2605.7,2605.6,7.9978]
[1748598447589,1.2129,2605.7,2605.6,8.76507]
[1748598447782,5.12548,2606.3,2605.8,0.7672]
[1748598447990,0.76722,2605.8,2605.6,7.9978]
[1748598448180,0.76724,2605.7,2605.6,7.9978]
[1748598448484,3.2078,2605.7,2605.3,0.76734]
[1748598448679,1.2295,2605.6,2605.5,0.7673]
[1748598448875,1.2295,2605.9,2605.8,0.76721]
[1748598449283,1.2295,2605.9,2605.6,4.79]
[1748598449686,0.76708,2606.3,2606.0,0.76712]
[1748598449889,1.2295,2606.2,2606.0,0.76712]
[1748598450289,4.4373,2606.2,2606.1,0.76712]
[1748598450486,3.2078,2606.2,2606.1,0.76712]
[1748598450685,3.2078,2606.2,2605.4,3.8581]
[1748598450883,3.2078,2606.2,2606.1,0.76712]
[1748598451086,4.4373,2606.6,2606.0,1.91785]
[1748598451387,0.00574889,2606.7,2606.0,3.2078]
[1748598451586,0.00574889,2606.7,2606.6,0.76698]
[1748598451778,0.00574889,2606.7,2606.6,5.55798]
[1748598452386,0.767,2606.5,2606.3,3.2078]
[1748598452583,1.2695,2606.6,2606.3,3.2078]
[1748598452783,0.00574889,2606.7,2606.6,0.76698]
[1748598452989,0.00574889,2606.7,2606.4,1.2214]
[1748598453192,1.27524889,2606.7,2606.4,1.2214]
[1748598453483,1.27524889,2606.7,2606.3,7.9988]
[1748598453694,2.04221889,2606.7,2606.5,0.76699]
[1748598453989,1.27524889,2606.7,2606.3,7.9988]
[1748598454182,0.76703,2606.4,2606.3,4.791]
[1748598454379,0.76708,2606.3,2606.0,1.2214]
[1748598454595,1.3033,2606.3,2606.2,0.76709]
[1748598454890,1.3033,2606.3,2606.1,5.55811]
[1748598455083,3.97489,2606.2,2606.1,4.791]
[1748598455283,4.04482857,2606.2,2606.1,4.791]
[1748598456090,0.76723,2605.8,2605.5,6.0734]
[1748598456287,1.3033,2606.1,2605.8,0.76721]
[1748598456792,0.76721,2605.9,2605.7,0.76723]
[1748598456988,1.3033,2606.1,2605.6,0.76725]
[1748598457195,0.76726,2605.7,2605.5,5.55828]
[1748598457489,3.22116,2606.1,2605.5,5.55828]
[1748598457490,0.76727,2605.6,2605.5,5.5583]
[1748598457689,0.76727,2605.6,2605.2,1.2251]
[1748598457690,3.22116,2606.1,2605.2,1.2251]
[1748598457891,0.76735,2605.4,2605.3,4.791]
[1748598458091,3.2078,2605.7,2605.4,0.76731]
[1748598458288,3.2078,2605.7,2605.3,5.55834]
[1748598458488,0.76733,2605.4,2605.3,4.791]
[1748598459494,0.76739,2605.2,2605.1,3.2078]
[1748598459695,5.12594,2605.7,2605.1,3.2078]
[1748598459696,1.264,2605.3,2605.1,3.2078]
[1748598459890,1.264,2605.3,2604.9,1.2251]
[1748598460094,0.76746,2605.0,2604.9,4.791]
[1748598460397,0.76746,2605.0,2604.9,5.55848]
[1748598460598,0.76746,2605.0,2604.9,4.791]
[1748598460798,0.76744,2605.1,2604.9,4.791]
[1748598460994,1.264,2605.3,2604.8,3.2078]
[1748598461196,1.264,2605.3,2604.9,1.2686]
[1748598461394,0.76743,2605.1,2604.9,1.2686]
[1748598461595,0.76747,2604.9,2604.8,3.2078]
[1748598463101,0.76745,2605.0,2604.8,3.2078]
[1748598463304,0.00574889,2605.4,2605.3,0.76735]
[1748598463501,0.00574889,2605.4,2605.3,4.792]
[1748598463805,0.76743,2605.1,2605.0,4.792]
[1748598464504,3.2078,2605.1,2604.5,4.792]
[1748598464805,0.76756,2604.6,2604.5,4.792]
[1748598465701,0.76756,2604.6,2604.3,3.2078]
[1748598465702,0.76762,2604.4,2604.3,3.2078]
[1748598465896,4.4434,2604.5,2603.6,4.792]
[1748598466105,3.2078,2603.8,2603.6,5.55985]
[1748598466406,3.2078,2603.8,2603.6,4.792]
[1748598466598,0.76785,2603.6,2603.4,6.1286]
[1748598466797,0.76785,2603.6,2603.5,0.07681966]
[1748598466997,1.2569,2603.7,2603.5,0.84467966]
[1748598467203,1.2569,2603.7,2603.5,0.07681966]
[1748598467402,1.2569,2603.7,2603.5,1.37401966]
[1748598467604,0.76785,2603.6,2603.5,0.07681966]
[1748598467803,2.02474,2603.7,2603.5,0.07681966]
[1748598468001,0.76785,2603.6,2603.5,0.07681966]
[1748598468904,0.76788,2603.6,2603.4,4.793]
[1748598469201,4.4647,2603.5,2603.0,38.687]
[1748598469411,4.4647,2603.5,2603.1,6.82968]
[1748598469412,5.23259,2603.5,2603.1,6.82968]
[1748598469606,4.4647,2603.5,2603.1,4.793]
[1748598469910,3.2078,2603.5,2603.3,0.76793]
[1748598470098,3.2078,2603.5,2603.4,0.76791]
[1748598470298,0.00576037,2604.0,2603.4,5.0]
[1748598470501,0.00576037,2604.0,2603.2,4.4765]
[1748598470502,0.76776,2603.9,2603.5,2.70427]
[1748598470700,1.99691037,2604.0,2603.7,0.76781]
[1748598471108,0.76776,2603.9,2603.8,1.2687]
[1748598471407,0.7678,2603.8,2603.6,4.794]
[1748598471600,1.22916037,2604.0,2603.5,5.4617]
[1748598471601,3.2078,2603.7,2603.5,5.4617]
[1748598471904,0.76777,2603.9,2603.6,0.76784]
[1748598472104,0.76782,2603.7,2603.6,1.2687]
[1748598472297,0.76784,2603.7,2603.5,0.6677]
[1748598472501,2.08264,2603.7,2603.5,0.6677]
[1748598472809,1.3148,2603.7,2603.5,1.43557]
[1748598473005,2.08262,2603.7,2603.5,1.43557]
[1748598473207,1.3148,2603.7,2603.6,0.76785]
[1748598473407,3.2078,2603.8,2603.6,0.76785]
[1748598473706,3.2078,2603.8,2603.5,2.74077]
[1748598473912,0.76785,2603.7,2603.5,1.9729]
[1748598474105,0.76785,2603.6,2603.5,1.9729]
[1748598474304,2.08263,2603.7,2603.5,0.6677]
[1748598474809,0.76785,2603.6,2603.5,0.6677]
[1748598475003,1.3148,2603.7,2603.2,1.3052]
[1748598475313,1.3148,2603.7,2603.3,4.742]
[1748598475611,3.2078,2603.8,2603.4,1.3365]
[1748598475906,0.76783,2603.7,2603.4,2.1044]
[1748598476108,0.76787,2603.6,2603.4,1.3365]
[1748598476309,3.2078,2603.8,2603.4,1.3365]
[1748598476607,0.76787,2603.6,2603.4,1.3365]
[1748598476914,3.2078,2603.8,2603.4,1.3365]
[1748598477110,0.76788,2603.5,2603.4,1.3365]
[1748598477301,0.76797,2603.3,2602.8,3.8731]
[1748598477500,0.76792,2603.4,2603.1,4.742]
[1748598477703,0.76792,2603.4,2603.1,6.0785]
[1748598477913,0.76792,2603.4,2603.2,1.3365]
[1748598478114,0.76794,2603.3,2603.2,1.3365]
[1748598478715,1.91979,2603.4,2602.8,0.6653]
[1748598479006,0.76809,2602.8,2602.7,4.743]
[1748598479413,3.2078,2602.8,2602.4,4.743]
[1748598479710,3.2078,2603.5,2602.6,1.92038]
[1748598479908,0.76795,2603.3,2603.1,0.76799]
[1748598480213,0.76803,2603.0,2602.9,6.0365]
[1748598480410,3.2078,2603.5,2603.0,0.76802]
[1748598480610,1.3163,2603.4,2602.9,6.0365]
[1748598480909,3.2078,2603.4,2603.0,0.6407]
[1748598481109,3.2078,2603.4,2603.0,1.9342]
[1748598481716,0.7679,2603.5,2603.2,0.76796]
[1748598481904,0.76793,2603.4,2603.3,1.22]
[1748598482107,0.768,2603.1,2603.0,0.6407]
[1748598482415,0.768,2603.1,2603.0,1.8607]
[1748598482714,3.2078,2603.4,2603.0,1.8607]
[1748598482920,0.76796,2603.3,2603.0,2.62871]
[1748598483309,3.2078,2603.4,2603.0,1.8607]
[1748598483509,3.2078,2603.8,2603.0,5.0685]
[1748598483712,0.76785,2603.7,2603.4,0.7679]
[1748598483911,3.97561,2603.8,2603.5,1.98786]
[1748598484116,0.76783,2603.7,2603.5,1.98786]
[1748598484316,0.76783,2603.7,2603.5,1.22]
[1748598484519,3.97562,2603.8,2603.5,1.98787]
[1748598484917,3.97561,2603.8,2603.5,1.98787]
[1748598485214,0.00576037,2604.0,2603.5,1.22]
[1748598485419,0.00576037,2604.0,2603.7,0.76781]
[1748598485719,0.00576037,2604.0,2603.8,2.08099]
[1748598485918,0.77351037,2604.0,2603.8,1.3132]
[1748598486307,0.00576037,2604.0,2603.9,4.743]
[1748598486511,0.00576037,2604.0,2603.9,5.51076]
[1748598486810,0.00576037,2604.0,2603.9,11.13896]
[1748598487211,3.2078,2604.5,2603.9,13.579]
[1748598487417,0.76773,2604.0,2603.9,0.6282]
[1748598487614,0.76776,2603.9,2603.8,4.743]
[1748598488314,3.21356037,2604.1,2603.6,4.74876037]
[1748598488621,0.00576037,2604.1,2604.0,0.76773]
[1748598489012,0.00576037,2604.1,2603.7,1.3322]
[1748598489315,0.76782,2603.7,2603.6,0.00576037]
[1748598489720,2.04322,2603.7,2603.6,0.00576037]
[1748598490421,0.76803,2603.0,2602.9,4.743]
[1748598490725,3.2078,2603.2,2602.9,4.743]
[1748598491318,1.92021,2602.9,2601.5,4.743]
[1748598491623,0.76841,2601.7,2601.6,4.743]
[1748598491815,3.9762,2601.8,2601.6,4.743]
[1748598492118,3.2078,2601.8,2601.6,4.743]
[1748598492512,3.2078,2601.8,2601.7,0.84528281]
[1748598492717,3.2078,2601.8,2601.7,1.46228281]
[1748598492929,3.2078,2602.3,2602.0,0.76831]
[1748598493219,0.76827,2602.2,2602.1,4.743]
[1748598493416,3.2078,2602.3,2602.1,4.743]
[1748598493623,0.76827,2602.2,2602.1,4.743]
[1748598493822,3.97605,2602.3,2602.1,4.743]
[1748598494015,0.76827,2602.2,2602.1,4.743]
[1748598494216,3.2078,2602.3,2602.1,4.743]
[1748598494622,2.05552,2602.4,2602.1,4.743]
[1748598494918,0.76827,2602.2,2602.1,4.743]
[1748598495819,2.07077,2602.2,2602.1,4.743]
[1748598496016,0.76821,2602.4,2602.1,4.743]
[1748598496219,0.76838,2601.8,2601.7,5.361]
[1748598496423,0.76849,2601.5,2601.3,1.271]
[1748598496617,3.97628,2601.5,2601.4,4.745]
[1748598496816,0.76862,2601.0,2600.9,4.745]
[1748598497116,3.2078,2601.1,2600.7,38.714]
[1748598497316,3.919367,2600.8,2600.7,38.714]
[1748598497620,3.919367,2600.8,2600.7,43.459]
[1748598497820,3.919367,2600.8,2600.7,38.714]
[1748598498017,3.919367,2600.8,2600.7,43.459]
[1748598498821,0.7688,2600.4,2600.3,1.8415]
[1748598499122,0.7688,2600.4,2600.3,5.3632]
[1748598499324,0.7688,2600.4,2600.3,0.6182]
[1748598499519,0.7688,2600.4,2600.3,5.3632]
[1748598500122,0.7688,2600.4,2600.1,0.76887]
[1748598500123,0.76881,2600.4,2600.1,0.76887]
[1748598500425,0.76881,2600.4,2600.0,1.2233]
[1748598500426,2.07704,2600.3,2600.2,4.746]
[1748598500619,1.3082,2600.3,2599.8,3.8734]
[1748598500823,0.76891,2600.1,2599.9,4.746]
[1748598501021,0.76887,2600.2,2599.9,5.51494]
[1748598501218,0.7689,2600.1,2599.8,5.97366]
[1748598501421,0.7689,2600.1,2599.9,4.746]
[1748598501422,2.0771,2600.1,2599.9,4.746]
[1748598501627,3.2078,2600.5,2600.0,4.746]
[1748598501823,3.2078,2600.8,2600.7,0.76871]
[1748598502018,1.3082,2601.1,2600.7,4.746]
[1748598502219,3.2078,2600.9,2600.4,5.1931]
[1748598502416,3.2078,2600.9,2600.8,0.76868]
[1748598502619,0.76862,2601.0,2600.7,0.76869]
[1748598502825,3.2078,2600.8,2600.7,0.76869]
[1748598503123,0.76874,2600.6,2600.5,4.747]
[1748598503326,1.3365,2600.7,2600.1,3.2078]
[1748598503630,3.2078,2600.4,2600.3,0.76882]
[1748598503833,3.2078,2600.4,2599.9,1.3343]
[1748598504222,0.76894,2599.9,2599.8,8.6234]
[1748598504423,4.48701,2601.0,2599.8,8.6234]
[1748598504424,3.2078,2600.7,2600.5,0.76875]
[1748598504628,1.3365,2600.9,2600.4,4.75]
[1748598504827,1.3365,2600.9,2600.5,6.0843]
[1748598505027,1.3365,2600.9,2600.5,4.75]
[1748598505224,0.76874,2600.6,2600.5,4.75]
[1748598505429,3.2078,2600.8,2600.7,0.76871]
[1748598505628,0.00576037,2601.2,2601.1,0.76859]
[1748598505834,0.00576037,2601.2,2601.1,5.51959]
[1748598506535,0.00576037,2601.2,2601.1,4.751]
[1748598506732,0.77432037,2601.2,2601.1,4.751]
[1748598507130,0.00576037,2601.2,2601.1,5.51959]
[1748598508337,0.00576037,2601.2,2601.1,4.751]
[1748598508532,0.77432037,2601.2,2601.1,4.751]
[1748598509633,0.77432037,2601.2,2600.7,5.51969]
[1748598509634,0.76864,2601.0,2600.7,5.51969]
[1748598509934,2.0115,2601.1,2600.8,0.76865]
[1748598510136,1.2429,2601.1,2600.7,4.751]
[1748598510330,1.2429,2601.1,2600.8,0.76866]
[1748598510637,0.76869,2600.8,2600.6,5.51971]
[1748598510831,0.76865,2601.0,2600.7,0.76871]
[1748598511037,2.0115,2601.1,2600.9,0.76863]
[1748598511226,0.00576037,2601.2,2601.1,0.76859]
[1748598511534,0.77432037,2601.2,2601.1,4.751]
[1748598511727,3.98212037,2601.2,2601.1,4.751]
[1748598512934,3.21356037,2601.2,2601.1,5.51959]
[1748598513135,3.98212037,2601.2,2601.1,4.751]
[1748598514235,0.00576037,2601.2,2601.1,5.51959]
[1748598514731,0.00576037,2601.2,2601.1,10.51959]
[1748598515239,0.00576037,2601.2,2601.1,5.51959]
[1748598515428,0.77432037,2601.2,2601.1,4.751]
[1748598515834,0.00576037,2601.2,2600.9,4.5172]
[1748598516036,0.76862,2601.0,2600.9,3.2078]
[1748598516237,0.76871,2600.7,2600.6,4.82093857]
[1748598517138,0.7687,2600.8,2600.6,5.58967857]
[1748598517336,0.76871,2600.7,2600.6,4.82093857]
[1748598518141,0.76868,2600.8,2600.7,0.76869]
[1748598518441,0.76868,2600.8,2600.6,4.82093857]
[1748598518442,0.76871,2600.7,2600.6,4.82093857]
[1748598518736,0.76871,2600.7,2600.6,0.06993857]
[1748598518737,2.10091,2600.7,2600.6,0.06993857]
[1748598518929,2.10091,2600.7,2599.3,4.752]
[1748598518930,1.92195,2600.5,2599.3,4.752]
[1748598519134,3.9767,2600.1,2599.9,0.76894]
[1748598519330,0.00576037,2600.3,2600.2,0.76886]
[1748598519536,0.00576037,2600.3,2600.2,5.52086]
[1748598519939,0.00576037,2600.3,2600.2,10.52086]
[1748598520134,0.00576037,2600.3,2600.2,0.76886]
[1748598520445,0.00576037,2600.3,2600.2,5.52086]
[1748598522442,0.00576037,2600.3,2600.0,1.3167]
[1748598522642,0.76887,2600.2,2600.1,4.752]
[1748598523038,2.01587,2600.2,2600.1,4.752]
[1748598523940,2.01587,2600.2,2599.7,38.757]
[1748598524146,1.247,2600.2,2599.7,0.76897]
[1748598524347,0.769,2599.7,2599.6,4.752]
[1748598524739,0.76899,2599.8,2599.6,4.752]
[1748598524945,1.3249,2600.0,2599.6,5.52102]
[1748598525241,0.769,2599.7,2599.6,4.752]
[1748598525544,3.2078,2599.8,2599.1,3.2078]
[1748598525748,2.09394,2599.6,2599.2,4.752]
[1748598525936,2.09394,2599.6,2599.5,0.76906]
[1748598526141,1.3249,2599.6,2599.4,0.76908]
[1748598526336,1.92228,2600.1,2599.6,0.76902]
[1748598526541,1.92228,2600.1,2599.3,1.2534]
[1748598526542,1.3249,2599.9,2599.3,3.17618]
[1748598526744,0.76898,2599.8,2599.7,0.76898]
[1748598526942,1.3249,2599.9,2599.8,0.76897]
[1748598527140,3.2078,2600.1,2599.7,4.753]
[1748598527341,3.2078,2600.1,2599.8,1.2562]
[1748598527641,1.303,2600.0,2599.7,4.753]
[1748598527948,0.76895,2599.9,2599.8,0.76897]
[1748598528135,2.07193,2600.0,2599.8,0.76897]
[1748598528342,0.76897,2599.9,2599.7,5.52198]
[1748598528543,1.303,2600.0,2599.9,0.76894]
[1748598528841,2.07191,2600.0,2599.9,0.76894]
[1748598529041,1.303,2600.0,2599.4,3.2078]
[1748598529236,1.303,2600.0,2599.8,0.76896]
[1748598529546,0.76898,2599.8,2599.7,0.76899]
[1748598529746,1.303,2600.0,2599.5,6.0092]
[1748598529747,1.303,2600.0,2599.6,0.76901]
[1748598530042,1.3062,2599.7,2599.5,4.753]
[1748598530248,2.07521,2599.7,2599.5,5.52205]
[1748598530448,0.76903,2599.6,2599.5,5.52205]
[1748598530754,1.3062,2599.6,2599.5,5.52205]
[1748598530950,2.07523,2599.6,2599.5,4.753]
[1748598531150,2.07523,2599.6,2599.5,5.52206]
[1748598531352,2.07523,2599.6,2599.5,4.753]
[1748598531551,1.3062,2599.6,2599.5,5.52206]
[1748598531744,2.07523,2599.6,2599.5,4.753]
[1748598532146,2.07523,2599.6,2599.2,0.06993857]
[1748598532147,0.76912,2599.3,2599.2,0.06993857]
[1748598532348,3.97692,2599.3,2599.2,0.06993857]
[1748598532745,3.2078,2599.3,2599.2,0.06993857]
[1748598532941,4.514,2599.6,2599.2,0.06993857]
[1748598533147,4.514,2599.6,2599.3,0.7691]
[1748598533342,0.76906,2599.5,2599.3,0.7691]
[1748598533555,0.76912,2599.3,2599.2,0.06993857]
[1748598534552,1.2155,2599.4,2599.2,0.06993857]
[1748598534749,0.76912,2599.3,2599.2,0.06993857]
[1748598535046,3.97692,2599.3,2599.2,0.06993857]
[1748598535549,5.25712,2599.3,2599.2,0.06993857]
[1748598535752,4.62882,2599.3,2599.2,0.06993857]
[1748598537563,1.42102,2599.3,2599.2,0.06993857]
[1748598537763,0.6519,2599.3,2599.2,0.83908857]
[1748598538155,2.63592,2599.3,2599.2,0.83908857]
[1748598538359,1.98402,2599.3,2599.2,0.83908857]
[1748598538659,3.2078,2599.6,2599.5,0.76906]
[1748598538860,3.2078,2599.6,2599.5,5.51706]
[1748598539259,1.2149,2599.8,2599.7,0.769]
[1748598539456,5.19167,2599.8,2599.7,0.769]
[1748598539967,4.4227,2599.8,2599.7,0.769]
[1748598540358,1.2149,2599.8,2599.7,0.769]
[1748598540959,3.21356037,2600.3,2599.7,3.2078]
[1748598541157,3.21356037,2600.3,2600.1,0.76887]
[1748598541158,5.29759037,2600.3,2600.1,0.76887]
[1748598541356,5.29759037,2600.3,2600.2,4.748]
[1748598541570,4.52876037,2600.3,2600.2,5.51686]
[1748598542068,5.29759037,2600.3,2600.2,4.748]
[1748598542258,0.76896,2599.9,2599.7,3.2078]
[1748598542462,1.3374,2599.8,2599.7,3.97679]
[1748598542663,1.3374,2599.8,2599.7,8.72479]
[1748598542869,0.76893,2600.0,2599.8,0.76896]
[1748598543069,1.3374,2599.9,2599.8,0.78493706]
[1748598543257,3.21356037,2600.3,2600.2,0.76886]
[1748598543462,1.3374,2600.2,2600.1,0.76886]
[1748598543864,3.21356037,2600.3,2599.8,2.09932706]
[1748598544057,1.3374,2600.1,2599.8,0.01597706]
[1748598544366,1.3374,2600.1,2598.9,38.775]
[1748598544367,0.76912,2599.3,2599.2,4.81793857]
[1748598544772,0.76912,2599.3,2599.2,4.748]
[1748598544962,0.76921,2599.0,2598.9,38.775]
[1748598545164,0.76927,2598.8,2598.7,4.748]
[1748598545469,0.76939,2598.5,2598.3,5.51741]
[1748598545667,1.2325,2598.4,2598.3,5.51741]
[1748598546666,2.00189,2598.4,2598.3,4.748]
[1748598546959,1.2325,2598.4,2598.3,5.51742]
[1748598547361,3.2078,2598.5,2598.4,0.76939]
[1748598547763,1.2325,2598.9,2598.8,0.76927]
[1748598547970,1.2325,2598.9,2598.8,5.51727]
[1748598548369,0.00577156,2599.0,2598.9,0.76924]
[1748598549972,0.00577156,2599.0,2598.9,2.03154]
[1748598550778,0.00577156,2599.0,2598.9,2.63914]
[1748598553272,0.00577156,2599.0,2598.7,4.748]
[1748598553575,0.76927,2598.8,2598.7,4.748]
[1748598553769,3.97707,2598.8,2598.7,5.5173]
[1748598553974,3.97707,2598.8,2598.7,4.748]
[1748598558273,3.2078,2598.8,2598.7,5.5173]
[1748598558569,0.00577156,2599.0,2598.9,0.76924]
[1748598558771,1.22597156,2599.0,2598.9,0.76924]
[1748598558974,0.00577156,2599.0,2598.9,0.76924]
[1748598559674,3.2078,2599.6,2598.7,10.4956]
[1748598559877,1.3,2600.3,2599.7,1.92252]
[1748598560080,1.2202,2600.1,2600.0,0.76892]